fUST/lending_fUST_20240612
["ID","MTS","AMOUNT","RATE_DAILY","PERIOD"]
[329184733,1718158240472,-153.0,0.000184,2]
[329184735,1718158240483,-4240.25416209,0.00018511,2]
[329184737,1718158240494,-153.0,0.00018795,2]
[329184739,1718158240505,-153.0,0.00018795,2]
[329184741,1718158240518,-205.3436861,0.00018795,2]
[329184743,1718158240530,-153.0,0.00018795,2]
[329184744,1718158240540,-205.3436861,0.00018795,2]
[329184745,1718158240551,-205.3436861,0.00018795,2]
[329184746,1718158240563,-845.49192357,0.00018836,2]
[329184747,1718158240574,-845.49192357,0.00018848,2]
[329184748,1718158240585,-845.49192357,0.00018848,2]
[329184749,1718158240596,-153.0,0.00018853,2]
[329184750,1718158240610,-153.0,0.00018853,2]
[329184751,1718158240621,-205.3436861,0.00018853,2]
[329184752,1718158240632,-845.49192357,0.00018856,2]
[329184753,1718158240642,-584.2374306,0.00018862,2]
[329184754,1718158240653,-584.6618454,0.00018862,2]
[329184755,1718158240664,-391800.52866451,0.00018874,2]
[329184756,1718158240675,-400057.43020942,0.00018888,2]
[329184757,1718158240686,-845.49192357,0.00018893,2]
[329184758,1718158240697,-117960.53027178,0.00018899,2]
[329184797,1718158264507,454.32,0.00010959,2]
[329184802,1718158341551,155.27239315,0.00010959,10]
[329184804,1718158411671,2292.52115417,0.00019,15]
[329184805,1718158429991,227.15,0.00010959,2]
[329184806,1718158440598,189.29,0.00010959,2]
[329184868,1718158444017,155.01085076,9.999e-05,2]
[329184873,1718158451174,157.74,0.00010959,2]
[329184874,1718158461943,788.75,0.00010959,2]
[329184875,1718158476396,372.85667187,9.999e-05,2]
[329184877,1718158531551,1146.26057709,0.00019,15]
[329184878,1718158592684,552.64146814,9.999e-05,2]
[329184879,1718158609055,-530.43705745,0.00014766,2]
[329184880,1718158609087,-1984.3604423,0.00014767,2]
[329184881,1718158609120,-524.57388711,0.00014768,2]
[329184882,1718158609149,-46648.07951869,0.00014768,2]
[329184883,1718158609177,-9592.69620331,0.00014769,2]
[329184884,1718158609207,-300.0,0.00014769,2]
[329184885,1718158609239,-2643.67953355,0.00014769,2]
[329184886,1718158609270,-526.97601523,0.00014769,2]
[329184887,1718158609297,-282.15702933,0.00014769,2]
[329184888,1718158609325,-515.52689997,0.00014769,2]
[329184889,1718158609355,-21802.47209917,0.00014769,2]
[329184890,1718158609382,-723.74931798,0.00014769,2]
[329184891,1718158609411,-10546.01902729,0.0001477,2]
[329184892,1718158609441,-216.39257599,0.0001477,2]
[329184893,1718158609480,-2019.24535237,0.00014775,2]
[329184894,1718158609510,-156.08644646,0.00014873,2]
[329184895,1718158609540,-155.25170656,0.00014873,2]
[329184896,1718158609567,-155.29934968,0.00014877,2]
[329184897,1718158609597,-759.55453663,0.00014877,2]
[329184898,1718158609628,-1341.53645744,0.00014877,2]
[329184899,1718158609661,-181.79920761,0.00014878,2]
[329184900,1718158609688,-241.6243909,0.00014878,2]
[329184901,1718158609723,-194.93299377,0.00014878,2]
[329184902,1718158609753,-155.37121445,0.00014878,2]
[329184903,1718158609783,-299.52796317,0.00014878,2]
[329184904,1718158609813,-498.20736386,0.00014879,2]
[329184905,1718158609846,-155.01085076,0.00014879,2]
[329184906,1718158609876,-497.30310668,0.00014879,2]
[329184907,1718158609911,-1886.04341671,0.00014881,2]
[329184908,1718158609939,-1224.02593776,0.00014882,2]
[329184909,1718158609968,-233.17967962,0.00014882,2]
[329184910,1718158609996,-249.99811532,0.00014882,2]
[329184911,1718158610025,-2148.7287919,0.00014882,2]
[329184912,1718158610053,-289.06645324,0.00014882,2]
[329184913,1718158610081,-748.10761422,0.00014883,2]
[329184914,1718158610113,-264.4226228,0.00014883,2]
[329184915,1718158610141,-6335.23491911,0.00014883,2]
[329184916,1718158610171,-24873.33810279,0.00014883,2]
[329184917,1718158610201,-1068.25922422,0.00014884,2]
[329184918,1718158610230,-200.07886728,0.00014884,2]
[329184919,1718158610261,-1645.40253883,0.00015,2]
[329184920,1718158610291,-1074.28725399,0.00015,2]
[329184921,1718158610319,-2411.74414637,0.00015,2]
[329184922,1718158610349,-1303.14751118,0.00015,2]
[329184923,1718158610378,-397.06425695,0.00015,2]
[329184924,1718158884830,402.3721387,0.00016438,7]
[329184925,1718158891814,573.13028854,0.00019,15]
[329184926,1718158998496,2458.219,0.00023,30]
[329184927,1718159011341,286.56514427,0.00019,15]
[329184928,1718159019250,10000.0,0.00023,30]
[329184929,1718159077587,216.39257599,9.999e-05,2]
[329184930,1718159133924,286.56514427,0.00019,15]
[329184990,1718159440642,-1984.3604423,0.00014389,2]
[329184991,1718159440659,-300.0,0.0001439,2]
[329184992,1718159440671,-1658.08036931,0.00014391,2]
[329184993,1718159440692,-8887.93865798,0.00014391,2]
[329184994,1718159440713,-1766.83968335,0.00014392,2]
[329184995,1718159440725,-216.91346182,0.00014501,2]
[329184996,1718159440743,-1501.05383916,0.00014768,2]
[329184997,1718159440758,-549.23795169,0.00014769,2]
[329184998,1718159440811,-46648.07951869,0.00014999,2]
[329184999,1718159440833,-9056.15106647,0.00015,2]
[329185000,1718159440850,-1008.2335817,0.00015123,2]
[329185001,1718159440865,-190.34144755,0.000156,2]
[329185002,1718159440883,-1766.8396833,0.00016179,2]
[329185003,1718159440905,-275.71709057,0.000165,2]
[329185004,1718159440924,-153.0,0.00017456,2]
[329185005,1718159440935,-155.7876226,0.00017456,2]
[329185006,1718159440948,-153.0,0.00017456,2]
[329185007,1718159440959,-10491.92816074,0.00017898,2]
[329185008,1718159440970,-1766.8396833,0.00017966,2]
[329185009,1718159440988,-186.99495808,0.00018,2]
[329185010,1718159441003,-2770.60474295,0.00018,2]
[329185011,1718159441018,-1359.18560544,0.00018,2]
[329185012,1718159441030,-171.969978,0.00018031,2]
[329185013,1718159441042,-410.6873723,0.00018031,2]
[329185014,1718159441057,-205.3436861,0.00018031,2]
[329185015,1718159441069,-205.3436861,0.00018031,2]
[329185016,1718159441079,-153.0,0.00018078,2]
[329185017,1718159441091,-153.0,0.00018078,2]
[329185018,1718159441103,-153.0,0.00018078,2]
[329185019,1718159441113,-205.3436861,0.00018078,2]
[329185020,1718159441124,-205.3436861,0.00018078,2]
[329185021,1718159441135,-153.0,0.00018078,2]
[329185022,1718159441145,-306.0,0.00018078,2]
[329185023,1718159441155,-311.175041,0.00018078,2]
[329185024,1718159441166,-153.0,0.00018078,2]
[329185025,1718159441176,-205.3436861,0.00018078,2]
[329185026,1718159441187,-205.3436861,0.00018078,2]
[329185027,1718159441199,-292.5249381,0.00018078,2]
[329185028,1718159441209,-205.3436861,0.00018178,2]
[329185029,1718159441219,-208.7452966,0.00018178,2]
[329185030,1718159441229,-587.9285244,0.00018178,2]
[329185031,1718159441240,-205.3436861,0.00018178,2]
[329185032,1718159441250,-153.0,0.00018178,2]
[329185033,1718159441261,-292.5249381,0.00018178,2]
[329185034,1718159441271,-292.5249381,0.00018178,2]
[329185035,1718159441281,-205.3436861,0.00018178,2]
[329185036,1718159441295,-205.3436861,0.00018178,2]
[329185037,1718159441315,-306.0,0.00018178,2]
[329185038,1718159441328,-193.2590863,0.00018178,2]
[329185039,1718159441340,-153.0,0.00018194,2]
[329185040,1718159441354,-153.0,0.00018194,2]
[329185042,1718159441371,-153.0,0.00018194,2]
[329185044,1718159441390,-153.0,0.00018194,2]
[329185045,1718159441405,-153.0,0.00018194,2]
[329185046,1718159441419,-153.0,0.00018194,2]
[329185047,1718159441431,-153.0,0.00018194,2]
[329185048,1718159441446,-153.0,0.00018194,2]
[329185049,1718159441466,-153.0,0.00018194,2]
[329185050,1718159441481,-153.0,0.00018194,2]
[329185051,1718159441492,-153.0,0.00018194,2]
[329185052,1718159441521,-292.5249381,0.00018278,2]
[329185053,1718159441540,-315.9680031,0.00018352,2]
[329185054,1718159441565,-620.27335948,0.00018361,2]
[329185055,1718159441580,-4240.25416209,0.00018466,2]
[329185056,1718159441595,-23592.10605436,0.00018825,2]
[329185057,1718159441606,-169.09838471,0.00018826,2]
[329185058,1718159441617,-23592.10605436,0.0001883,2]
[329185059,1718159441627,-169.09838471,0.00018836,2]
[329185060,1718159441638,-23592.10605436,0.00018841,2]
[329185061,1718159441648,-23592.10605436,0.00018855,2]
[329185063,1718159441659,-23592.10605436,0.00018856,2]
[329185065,1718159441671,-584.6618454,0.00018862,2]
[329185066,1718159441682,-292.5249381,0.00018862,2]
[329185067,1718159441693,-292.5249381,0.00018862,2]
[329185068,1718159441706,-292.5249381,0.00018862,2]
[329185069,1718159441718,-169.09838471,0.00018877,2]
[329185070,1718159441729,-169.09838471,0.00018885,2]
[329185071,1718159441742,-169.09838471,0.00018886,2]
[329185072,1718159441756,-282096.89993764,0.00018899,2]
[329185073,1718159441766,-2334.38093251,0.00018899,2]
[329185074,1718159441800,-10674.39934007,0.000189,2]
[329185075,1718159441814,-6682.93104012,0.000189,2]
[329185076,1718159441825,-2334.38093247,0.00018944,2]
[329185077,1718159441835,-2000.0,0.00018976,2]
[329185078,1718159441846,-2334.38093247,0.00018989,2]
[329185079,1718159441858,-3000.0,0.00018999,2]
[329185080,1718159441871,-3000.0,0.00018999,2]
[329185081,1718159441884,-3000.0,0.00018999,2]
[329185082,1718159441896,-3000.0,0.00018999,2]
[329185083,1718159441923,-3000.0,0.00018999,2]
[329185084,1718159441951,-65612.28920744,0.00019,2]
[329185085,1718159441966,-163.14541634,0.00019,2]
[329185086,1718159441988,-7270.73643792,0.00019,2]
[329185087,1718159442000,-2334.38093247,0.00019033,2]
[329185088,1718159442020,-426.9034464,0.00019057,2]
[329185089,1718159442036,-285.48237256,0.00019074,2]
[329185090,1718159442051,-528.75732377,0.00019076,2]
[329185091,1718159442223,-2413.93047738,0.00019076,2]
[329185092,1718159442242,-53636.39935452,0.00019076,2]
[329185093,1718159442255,-155.01240099,0.00019076,2]
[329185094,1718159442266,-670.18250226,0.00019076,2]
[329185095,1718159442281,-812.00505316,0.00019076,2]
[329185097,1718159442295,-523.81137293,0.00019077,2]
[329185098,1718159442309,-10696.56316973,0.00019077,2]
[329185099,1718159442321,-1164.15849045,0.00019077,2]
[329185100,1718159442341,-9092.41046966,0.00019077,2]
[329185101,1718159442376,-3000.0,0.00019077,2]
[329185102,1718159442401,-3000.0,0.00019077,2]
[329185103,1718159442417,-3000.0,0.00019077,2]
[329185104,1718159442441,-2334.38093247,0.00019078,2]
[329185105,1718159442461,-153.0,0.00019153,2]
[329185106,1718159442474,-6894.96524497,0.00019173,2]
[329185107,1718159442484,-155.04590099,0.00019174,2]
[329185108,1718159442498,-155.21309839,0.00019174,2]
[329185109,1718159442513,-656.82407105,0.00019174,2]
[329185110,1718159442524,-207.2286305,0.00019174,2]
[329185111,1718159442536,-197.51606435,0.00019174,2]
[329185112,1718159442549,-201.48791467,0.00019174,2]
[329185113,1718159442567,-159.48583432,0.00019174,2]
[329185114,1718159442586,-412.6813373,0.00019174,2]
[329185115,1718159442598,-155.96279152,0.00019174,2]
[329185116,1718159442614,-287.17141865,0.00019174,2]
[329185117,1718159442628,-364.41152367,0.00019175,7]
[329185118,1718159442639,-155.14721912,0.00019176,2]
[329185119,1718159442650,-155.47958929,0.00019176,2]
[329185120,1718159442660,-3000.0,0.00019176,2]
[329185121,1718159442671,-3000.0,0.00019177,2]
[329185123,1718159442682,-2817.43699498,0.00019177,2]
[329185126,1718159442698,-182.56300502,0.00019177,2]
[329185128,1718159442710,-2693.86771152,0.00019177,2]
[329185130,1718159442723,-500.0,0.00019178,2]
[329185132,1718159442735,-3046.21531229,0.00019178,2]
[329185134,1718159442746,-3046.21531229,0.00019178,2]
[329185136,1718159442757,-3046.21531229,0.00019178,2]
[329185138,1718159442790,-3046.21531229,0.00019178,2]
[329185140,1718159442817,-3046.21531229,0.00019178,2]
[329185142,1718159442828,-386.51988881,0.00019178,2]
[329185144,1718159442838,-500.0,0.00019178,2]
[329185146,1718159442848,-500.0,0.00019178,2]
[329185148,1718159442858,-492.65671293,0.00019178,2]
[329185150,1718159442868,-500.0,0.00019178,2]
[329185152,1718159442879,-500.0,0.00019178,2]
[329185154,1718159442889,-500.0,0.00019178,2]
[329185156,1718159442902,-500.0,0.00019178,2]
[329185158,1718159442916,-188.47261006,0.00019178,2]
[329185160,1718159442933,-335.51704441,0.00019178,2]
[329185162,1718159442948,-500.0,0.00019178,2]
[329185164,1718159442961,-500.0,0.00019178,2]
[329185166,1718159442975,-500.0,0.00019178,2]
[329185168,1718159442987,-500.0,0.00019178,2]
[329185169,1718159443000,-500.0,0.00019178,2]
[329185170,1718159443011,-500.0,0.00019178,2]
[329185171,1718159443022,-500.0,0.00019178,2]
[329185172,1718159443032,-500.0,0.00019178,2]
[329185173,1718159443044,-500.0,0.00019178,2]
[329185174,1718159443055,-518.55634638,0.00019178,2]
[329185175,1718159443069,-500.0,0.00019178,2]
[329185176,1718159443081,-500.0,0.00019178,2]
[329185177,1718159443096,-500.0,0.00019178,2]
[329185178,1718159443108,-500.0,0.00019178,2]
[329185179,1718159443121,-500.0,0.00019178,2]
[329185180,1718159443132,-500.0,0.00019178,2]
[329185181,1718159443145,-500.0,0.00019178,2]
[329185183,1718159443156,-500.0,0.00019178,2]
[329185185,1718159443167,-500.0,0.00019178,2]
[329185187,1718159443181,-470.17836008,0.00019178,2]
[329185189,1718159443193,-500.4685345,0.00019178,2]
[329185190,1718159443206,-194.61556656,0.00019178,2]
[329185191,1718159443221,-500.0,0.00019178,2]
[329185193,1718159443235,-500.0,0.00019178,2]
[329185195,1718159443247,-434.34962952,0.00019178,2]
[329185197,1718159443258,-582.69051577,0.00019178,2]
[329185199,1718159443276,-369.44858485,0.00019178,2]
[329185200,1718159443289,-500.0,0.00019178,2]
[329185201,1718159443304,-874.14669781,0.00019178,2]
[329185202,1718159443325,-874.14669781,0.00019178,2]
[329185203,1718159443341,-874.14669781,0.00019178,2]
[329185204,1718159443354,-874.14669781,0.00019178,2]
[329185205,1718159443370,-874.14669781,0.00019178,2]
[329185206,1718159443385,-874.14669781,0.00019178,2]
[329185207,1718159443397,-874.14669781,0.00019178,2]
[329185208,1718159443408,-874.14669781,0.00019178,2]
[329185209,1718159443420,-874.14669781,0.00019178,2]
[329185210,1718159443431,-874.14669781,0.00019178,2]
[329185211,1718159443443,-874.14669781,0.00019178,2]
[329185213,1718159443454,-874.14669781,0.00019178,2]
[329185215,1718159443467,-874.14669781,0.00019178,2]
[329185216,1718159443482,-874.14669781,0.00019178,2]
[329185217,1718159443497,-874.14669781,0.00019178,2]
[329185218,1718159443511,-874.14669781,0.00019178,2]
[329185219,1718159443523,-874.14669781,0.00019178,2]
[329185220,1718159443535,-874.14669781,0.00019178,2]
[329185221,1718159443547,-500.0,0.00019178,2]
[329185222,1718159443561,-500.0,0.00019178,2]
[329185224,1718159443573,-500.0,0.00019178,2]
[329185226,1718159443585,-874.14669781,0.00019178,2]
[329185228,1718159443597,-180.1685196,0.00019178,2]
[329185229,1718159443765,-319.8314804,0.00019178,2]
[329185230,1718159443805,-514.58861848,0.00019178,2]
[329185231,1718159443818,-874.14669781,0.00019178,2]
[329185232,1718159443829,-500.0,0.00019178,2]
[329185233,1718159443841,-500.0,0.00019178,2]
[329185234,1718159443852,-500.0,0.00019178,2]
[329185235,1718159443865,-874.14669781,0.00019178,2]
[329185236,1718159443882,-874.14669781,0.00019178,2]
[329185237,1718159443895,-500.0,0.00019178,2]
[329185238,1718159443914,-500.0,0.00019178,2]
[329185239,1718159443925,-874.14669781,0.00019178,2]
[329185240,1718159443937,-207.46043389,0.00019178,2]
[329185241,1718159443950,-475.15397516,0.00019178,2]
[329185243,1718159444197,-24.84602484,0.00019178,2]
[329185244,1718159444208,-500.0,0.00019178,2]
[329185245,1718159444219,-500.0,0.00019178,2]
[329185246,1718159444231,-500.0,0.00019178,2]
[329185247,1718159444244,-500.0,0.00019178,2]
[329185249,1718159444255,-500.0,0.00019178,2]
[329185251,1718159444268,-500.0,0.00019178,2]
[329185253,1718159444281,-500.0,0.00019178,2]
[329185254,1718159444292,-631.0311629,0.00019178,2]
[329185255,1718159444303,-874.14669781,0.00019178,2]
[329185256,1718159444315,-874.14669781,0.00019178,2]
[329185257,1718159444327,-874.14669781,0.00019178,2]
[329185258,1718159444346,-500.0,0.00019178,2]
[329185259,1718159444356,-388.88088717,0.00019178,2]
[329185260,1718159444369,-500.0,0.00019178,2]
[329185261,1718159444382,-440.7057178,0.00019178,2]
[329185262,1718159444393,-372.46335035,0.00019178,2]
[329185263,1718159444406,-500.0,0.00019178,2]
[329185264,1718159444417,-500.0,0.00019178,2]
[329185265,1718159444428,-500.0,0.00019178,2]
[329185266,1718159444439,-276.01481436,0.00019178,2]
[329185267,1718159444449,-500.0,0.00019178,2]
[329185268,1718159444460,-500.0,0.00019178,2]
[329185269,1718159444471,-500.0,0.00019178,2]
[329185270,1718159444482,-500.0,0.00019178,2]
[329185271,1718159444493,-500.0,0.00019178,2]
[329185272,1718159444505,-5191.9447922,0.00019178,2]
[329185273,1718159444518,-500.0,0.00019178,2]
[329185274,1718159444530,-500.0,0.00019178,2]
[329185275,1718159444542,-5017.4060629,0.00019178,2]
[329185313,1718159448593,-292.5249381,0.00017456,2]
[329185314,1718159448604,-119.76603323,0.00018194,2]
[329185318,1718160110474,10000.0,0.00014,2]
[329185320,1718160141986,10000.0,0.00014,2]
[329185321,1718160218302,10000.0,0.00014,2]
[329185322,1718160218890,-1984.3604423,0.00015253,2]
[329185323,1718160218926,-521.13160422,0.00015254,2]
[329185324,1718160218949,-782.01590696,0.00015254,2]
[329185325,1718160218960,-1202.34453534,0.00015255,2]
[329185326,1718160218979,-196.51292276,0.00015255,2]
[329185327,1718160218989,-1106.63458842,0.0001628,2]
[329185328,1718160262199,10000.0,0.00023,30]
[329185329,1718160283897,10000.0,0.00014,2]
[329185330,1718160422424,10000.0,0.00014,2]
[329185331,1718160450879,1631.93885321,0.00017847,15]
[329185334,1718160571589,815.96942661,0.00017847,15]
[329185386,1718160633524,-0.4861051,0.00015036,2]
[329185387,1718160633580,-170.3072289,0.00015036,2]
[329185388,1718160633591,-124.63394831,0.00015247,2]
[329185389,1718160633670,-1193.72138822,0.00015247,2]
[329185419,1718160640831,-1511.21913827,0.00015247,2]
[329185421,1718160640843,-3008.90118065,0.00015248,2]
[329185423,1718160640858,-16091.49335412,0.00015248,2]
[329185430,1718160640932,-27547.68498392,0.00015248,2]
[329185432,1718160640943,-155.39532756,0.00015249,2]
[329185434,1718160640954,-11101.9638547,0.00015249,2]
[329185436,1718160640965,-24890.0,0.00015251,2]
[329185438,1718160640977,-1234.9661947,0.00015277,2]
[329185439,1718160640992,-250.0,0.00015278,2]
[329185440,1718160641002,-1207.69924214,0.00016176,2]
[329185441,1718160641013,-861.09631094,0.00016275,2]
[329185442,1718160641023,-30377.53409933,0.00016277,2]
[329185443,1718160641034,-573.50011249,0.00016278,2]
[329185444,1718160641044,-358.21444499,0.00016279,2]
[329185445,1718160641055,-275.71709057,0.000165,2]
[329185446,1718160641065,-9572.05171521,0.00016909,2]
[329185447,1718160641075,-452.5258331,0.00016936,2]
[329185448,1718160641086,-1207.6992421,0.00017708,2]
[329185449,1718160641096,-2334.38093251,0.0001775,2]
[329185450,1718160641107,-190.26891304,0.00017755,2]
[329185451,1718160641118,-198223.93642498,0.00017847,2]
[329185452,1718160641128,-59601.7655854,0.0001785,2]
[329185453,1718160641138,-2334.38093247,0.00018082,2]
[329185455,1718160641149,-6795.08405649,0.00018094,2]
[329185456,1718160641160,-528.75732377,0.00018162,2]
[329185457,1718160641171,-2413.93047738,0.00018163,2]
[329185458,1718160641181,-670.18250226,0.00018164,2]
[329185459,1718160641192,-9092.41046966,0.00018164,2]
[329185460,1718160641203,-523.81137293,0.00018164,2]
[329185461,1718160641214,-155.01240099,0.00018164,2]
[329185462,1718160641224,-812.00505316,0.00018164,2]
[329185463,1718160641237,-1164.15849045,0.00018165,2]
[329185464,1718160641248,-4339.78820427,0.00018166,2]
[329185465,1718160641258,-155.36318624,0.00018194,2]
[329185466,1718160641268,-2334.38093247,0.00018414,2]
[329185467,1718160641278,-186.2339668,0.00018441,2]
[329185468,1718160641301,-292.5249381,0.0001863,2]
[329185469,1718160641317,-292.5249381,0.0001863,2]
[329185470,1718160641327,-292.5249381,0.0001863,2]
[329185471,1718160641339,-2334.38093247,0.00018746,2]
[329185472,1718160641350,-10674.39934007,0.000189,2]
[329185473,1718160641360,-17790.55058452,0.00018987,2]
[329185474,1718160641371,-3000.0,0.00018999,2]
[329185475,1718160641383,-3000.0,0.00018999,2]
[329185476,1718160641394,-3000.0,0.00018999,2]
[329185477,1718160641405,-3000.0,0.00018999,2]
[329185478,1718160641418,-3000.0,0.00018999,2]
[329185479,1718160641429,-7270.73643792,0.00019,2]
[329185480,1718160641439,-163.14541634,0.00019,2]
[329185481,1718160641449,-55324.23810009,0.0001903,2]
[329185482,1718160641464,-797.46,0.0001903,2]
[329185505,1718160642507,-297.68188744,0.0001903,2]
[329185506,1718160642519,-4063.85317121,0.00019039,2]
[329185507,1718160642532,-2230.31137379,0.00019039,2]
[329185508,1718160642705,-5799.68472685,0.00019039,2]
[329185654,1718160647049,-292.5249381,0.00018356,2]
[329185655,1718160647061,-3511.29301132,0.00019039,2]
[329185656,1718160647089,-6653.71869993,0.00019039,2]
[329185657,1718160647134,-34160.51900443,0.00019039,2]
[329185658,1718160647145,-31882.45644668,0.00019049,2]
[329185659,1718160648729,-24536.92354085,0.00019049,2]
[329185660,1718160648740,-56419.37998753,0.00019052,2]
[329185661,1718160648753,-56419.37998753,0.00019063,2]
[329185662,1718160648764,-3000.0,0.00019075,2]
[329185664,1718160648774,-4240.25416209,0.00019075,2]
[329185666,1718160648784,-3000.0,0.00019076,2]
[329185667,1718160648795,-160.37261706,0.00019077,2]
[329185668,1718160648806,-2334.38093247,0.00019078,2]
[329185669,1718160648816,-153.0,0.00019096,2]
[329185670,1718160648827,-153.0,0.00019096,2]
[329185671,1718160648838,-153.0,0.00019119,2]
[329185672,1718160648849,-3000.0,0.00019173,2]
[329185673,1718160648860,-155.47958929,0.00019175,2]
[329185674,1718160648871,-412.6813373,0.00019175,2]
[329185675,1718160648882,-197.51606435,0.00019175,2]
[329185676,1718160648893,-207.2286305,0.00019175,2]
[329185677,1718160648904,-159.48583432,0.00019175,2]
[329185678,1718160648916,-155.96279152,0.00019175,2]
[329185679,1718160648926,-155.04590099,0.00019175,2]
[329185680,1718160648937,-656.82407105,0.00019175,2]
[329185681,1718160648948,-155.21309839,0.00019175,2]
[329185682,1718160648959,-208.39814571,0.00019175,2]
[329185683,1718160648971,-287.17141865,0.00019175,2]
[329185684,1718160648982,-364.41152367,0.00019175,7]
[329185685,1718160648993,-155.14721912,0.00019175,2]
[329185686,1718160649004,-1100.59931817,0.00019175,2]
[329185687,1718160649015,-201.48791467,0.00019175,2]
[329185688,1718160649026,-3498.39325683,0.00019177,2]
[329185689,1718160649037,-3000.0,0.00019177,2]
[329185690,1718160649047,-3000.0,0.00019177,2]
[329185691,1718160649060,-3000.0,0.00019177,2]
[329185692,1718160649070,-3000.0,0.00019177,2]
[329185693,1718160649081,-3000.0,0.00019177,2]
[329185694,1718160649092,-3000.0,0.00019177,2]
[329185695,1718160649102,-3000.0,0.00019177,2]
[329185696,1718160649113,-1633.47751343,0.00019177,2]
[329185697,1718160649124,-31808.82306684,0.00019178,13]
[329185698,1718160649312,-76.22269081,0.00019178,13]
[329185699,1718160649323,-174.5387293,0.00019178,2]
[329185700,1718160649333,-158.8599478,0.00019178,2]
[329185701,1718160649361,-341.1400522,0.00019178,2]
[329185702,1718160649372,-5191.9447922,0.00019178,2]
[329185703,1718160649381,-500.0,0.00019178,2]
[329185704,1718160649391,-500.0,0.00019178,2]
[329185705,1718160649401,-5191.9447922,0.00019178,2]
[329185706,1718160649411,-500.0,0.00019178,2]
[329185707,1718160649421,-500.0,0.00019178,2]
[329185708,1718160649431,-5191.9447922,0.00019178,2]
[329185709,1718160649441,-500.0,0.00019178,2]
[329185710,1718160649452,-500.0,0.00019178,2]
[329185711,1718160649461,-500.0,0.00019178,2]
[329185712,1718160649472,-500.0,0.00019178,2]
[329185713,1718160649482,-571.37398015,0.00019178,2]
[329185714,1718160649493,-500.0,0.00019178,2]
[329185715,1718160649506,-500.0,0.00019178,2]
[329185716,1718160649518,-500.0,0.00019178,2]
[329185717,1718160649529,-500.0,0.00019178,2]
[329185718,1718160649540,-500.0,0.00019178,2]
[329185719,1718160649551,-500.0,0.00019178,2]
[329185720,1718160649562,-500.0,0.00019178,2]
[329185721,1718160649573,-500.0,0.00019178,2]
[329185722,1718160649584,-181.56129954,0.00019178,2]
[329185723,1718160649595,-500.0,0.00019178,2]
[329185724,1718160649606,-500.0,0.00019178,2]
[329185725,1718160649617,-500.0,0.00019178,2]
[329185726,1718160649628,-500.0,0.00019178,2]
[329185727,1718160649639,-500.0,0.00019178,2]
[329185728,1718160649650,-204.94968552,0.00019178,2]
[329185729,1718160649661,-459.1602772,0.00019178,2]
[329185730,1718160649672,-500.0,0.00019178,2]
[329185731,1718160649683,-502.71091389,0.00019178,2]
[329185732,1718160649694,-500.0,0.00019178,2]
[329185733,1718160649705,-500.0,0.00019178,2]
[329185734,1718160649716,-307.33396459,0.00019178,2]
[329185735,1718160649727,-500.0,0.00019178,2]
[329185736,1718160649738,-500.0,0.00019178,2]
[329185737,1718160649752,-500.0,0.00019178,2]
[329185738,1718160649763,-87.23558852,0.00019178,2]
[329185743,1718160892303,1343.59150643,9.999e-05,2]
[329185747,1718161031453,-524.57388711,0.00015277,2]
[329185748,1718161031495,-163.3961608,0.00015278,2]
[329185749,1718161031537,-275.71709057,0.00017949,2]
[329185750,1718161031601,-252.62650212,0.0001795,2]
[329185751,1718161031649,-46648.07951869,0.00018046,2]
[329185752,1718161031743,-158.75533805,0.00018047,2]
[329185753,1718161031785,-7921.82449081,0.00018047,2]
[329185754,1718161031824,-10491.92816074,0.00018048,2]
[329185755,1718161031865,-510.98152513,0.00018143,2]
[329185756,1718161031908,-2689.50041218,0.00018144,2]
[329185757,1718161031949,-9975.36124938,0.00018147,2]
[329185758,1718161031991,-9092.41046966,0.00018147,2]
[329185759,1718161032030,-155.01240099,0.00018147,2]
[329185760,1718161032073,-812.00505316,0.00018147,2]
[329185761,1718161032113,-528.75732377,0.00018147,2]
[329185762,1718161032152,-2413.93047738,0.00018147,2]
[329185763,1718161032190,-670.18250226,0.00018147,2]